fUST/lending_fUST_20250409
["ID","MTS","AMOUNT","RATE_DAILY","PERIOD"]
[357573911,1744188424194,-241.34515536,0.00017226,2]
[357573912,1744188432388,-58.65484464,0.00017226,2]
[357573913,1744188432529,-117.63399588,0.00017227,2]
[357573914,1744188482371,-180.235759,0.00017227,2]
[357573915,1744188495589,-300.0,0.00017226,2]
[357573916,1744188495613,-188.66049232,0.00017226,2]
[357573917,1744188542161,-264.3595,0.00017227,2]
[357573919,1744188551424,-300.0,0.00017226,2]
[357573920,1744188553808,-183.35424081,0.00017227,2]
[357573921,1744188559774,240.87,0.00025,120]
[357573923,1744188574479,-250.0,0.00016484,2]
[357573924,1744188574502,-101.0,0.00017227,2]
[357573926,1744188603635,-248.04510823,0.00017226,2]
[357573927,1744188614890,-51.95489177,0.00017226,2]
[357573928,1744188614923,-150.90080723,0.00017227,2]
[357573929,1744188620622,-196.2234246,0.00017227,2]
[357573930,1744188625922,-196.2234246,0.00017227,2]
[357573944,1744188631665,-23463.49381529,0.00017227,2]
[357573945,1744188631675,-500.0,0.00017405,2]
[357573946,1744188631684,-344.933099,0.00017405,2]
[357573947,1744188631693,-500.0,0.00017405,2]
[357573948,1744188631703,-500.0,0.00017405,2]
[357573949,1744188631713,-500.0,0.00017405,2]
[357573950,1744188631722,-500.0,0.00017405,2]
[357573951,1744188631731,-620.15640885,0.00017405,2]
[357573952,1744188631740,-500.0,0.00017405,2]
[357573953,1744188631749,-500.0,0.00017405,2]
[357573954,1744188631759,-500.0,0.00017405,2]
[357573955,1744188631768,-577.58209876,0.00017405,2]
[357573956,1744188631778,-500.0,0.00017405,2]
[357573957,1744188631787,-500.0,0.00017405,2]
[357573958,1744188631796,-500.0,0.00017405,2]
[357573959,1744188631805,-500.0,0.00017405,2]
[357573960,1744188631814,-500.0,0.00017405,2]
[357573961,1744188631824,-344.58528853,0.00017405,2]
[357573962,1744188631833,-500.0,0.00017405,2]
[357573963,1744188631842,-4142.77566369,0.00017406,2]
[357573964,1744188631851,-24447.605453,0.00017407,2]
[357573965,1744188631860,-1679.9622999,0.00017444,2]
[357573966,1744188631870,-213.17775297,0.00017486,2]
[357573967,1744188631879,-500.0,0.000175,2]
[357573969,1744188631889,-666.49660186,0.00017583,2]
[357573972,1744188631901,-41.75068224,0.00017583,2]
[357573973,1744188631910,-250.0,0.00017683,2]
[357573975,1744188631919,-193.5829201,0.00017808,2]
[357573977,1744188631929,-61.17202579,0.00017978,2]
[357573979,1744188631944,-350.66006711,0.00017978,2]
[357573980,1744188631953,-481.45610848,0.00018061,2]
[357573981,1744188631962,-156.6949557,0.00018078,2]
[357573983,1744188631971,-156.6949557,0.00018078,2]
[357573984,1744188631981,-156.6949557,0.000181,2]
[357573986,1744188631990,-156.6949557,0.000181,2]
[357573988,1744188631999,-156.6949557,0.000181,2]
[357573989,1744188632009,-156.6949557,0.000181,2]
[357573990,1744188632018,-564.3717366,0.000183,2]
[357573991,1744188632028,-190.975234,0.000183,2]
[357573992,1744188632037,-156.6949557,0.000183,2]
[357573993,1744188632047,-564.3717366,0.000183,2]
[357573994,1744188632057,-156.6949557,0.000183,2]
[357573995,1744188632066,-185.1025474,0.000183,2]
[357573996,1744188632075,-156.6949557,0.000184,2]
[357573997,1744188632084,-213.3779527,0.000184,2]
[357573998,1744188632094,-152.0,0.00018481,2]
[357573999,1744188632103,-156.6949557,0.000186,2]
[357574000,1744188632113,-213.3779527,0.000186,2]
[357574001,1744188632122,-153.0,0.000186,2]
[357574002,1744188632131,-564.3717366,0.000186,2]
[357574003,1744188632142,-555.33633318,0.000186,2]
[357574004,1744188632151,-1000.0,0.000186,2]
[357574005,1744188632160,-500.36780271,0.00018673,2]
[357574006,1744188632170,-500.0,0.00018673,2]
[357574007,1744188632179,-465.82667726,0.00018673,2]
[357574008,1744188632188,-597.72496318,0.00018673,2]
[357574009,1744188632197,-457.179095,0.00018673,2]
[357574010,1744188632206,-500.0,0.00018673,2]
[357574011,1744188632216,-500.0,0.00018673,2]
[357574012,1744188632225,-500.0,0.00018673,2]
[357574013,1744188632235,-500.0,0.00018673,2]
[357574014,1744188632244,-501.17168601,0.00018673,2]
[357574015,1744188632254,-500.0,0.00018673,2]
[357574016,1744188632263,-500.0,0.00018673,2]
[357574017,1744188632273,-500.0,0.00018673,2]
[357574018,1744188632282,-467.84895119,0.00018673,2]
[357574019,1744188632291,-500.0,0.00018673,2]
[357574020,1744188632301,-500.0,0.00018673,2]
[357574021,1744188632310,-500.0,0.00018673,2]
[357574022,1744188632320,-151.0,0.00018689,2]
[357574023,1744188632329,-428.78,0.0001869,3]
[357574024,1744188632339,-214.39,0.0001869,3]
[357574025,1744188632348,-500.0,0.00018699,2]
[357574026,1744188632360,-563.83070097,0.00018699,2]
[357574027,1744188632369,-160.89418277,0.00018699,2]
[357574028,1744188632379,-156.6949557,0.000187,2]
[357574029,1744188632389,-213.3779527,0.000187,2]
[357574030,1744188632398,-153.0,0.000187,2]
[357574031,1744188632409,-564.3717366,0.000187,2]
[357574032,1744188632418,-12784.93584774,0.000187,2]
[357574033,1744188632431,-5376.34770716,0.000187,2]
[357574040,1744188638531,-643.21,0.0001869,3]
[357574042,1744188638541,-35454.32971002,0.000187,2]
[357574047,1744188638585,-56290.56325346,0.000187,2]
[357574048,1744188638597,-295.07403056,0.000187,2]
[357574049,1744188638612,-286.97427163,0.000187,2]
[357574050,1744188638639,-733.92589748,0.000187,2]
[357574051,1744188638650,-316.25620249,0.000187,2]
[357574062,1744188640672,-235.47126483,0.000187,2]
[357574340,1744188645775,-771.59,0.000187,2]
[357574344,1744188660270,-273.95575854,0.00017927,2]
[357574346,1744188730538,-154.17,0.00017127,2]
[357574352,1744189034286,-95.83,0.00017127,2]
[357574353,1744189034311,-56.17274093,0.0001769,2]
[357574354,1744189331085,214.39,0.00010959,2]
[357574355,1744189335619,-159.36337947,0.0001769,2]
[357574356,1744189335644,-143.42319872,0.00017827,2]
[357574357,1744189340607,-106.57680128,0.00017827,2]
[357574358,1744189340629,-62.98956664,0.00017927,2]
[357574359,1744189341773,178.65,0.00010959,2]
[357574360,1744189347963,-92.17431472,0.00017927,2]
[357574361,1744189347988,-255.73273917,0.00018573,2]
[357574362,1744189352456,227.6,0.00010959,2]
[357574363,1744189362993,247.66,0.00010959,2]
[357574364,1744189364079,-222.750884,0.00017643,2]
[357574365,1744189373708,206.38,0.00010959,2]
[357574366,1744189384041,-265.64575919,0.00017642,2]
[357574367,1744189384405,171.98,0.00010959,2]
[357574368,1744189386952,-34.35424081,0.00017642,2]
[357574369,1744189386976,-11812.2108169,0.00017643,2]
[357574370,1744189387001,-244.26726083,0.00018573,2]
[357574371,1744189387025,-500.0,0.00018573,2]
[357574372,1744189387049,-500.0,0.00018573,2]
[357574373,1744189387072,-9141.92492837,0.00018573,2]
[357574374,1744189387096,-500.0,0.00018599,2]
[357574375,1744189387121,-616.20467806,0.00018599,2]
[357574376,1744189387147,-500.0,0.00018599,2]
[357574377,1744189387171,-584.07150235,0.00018599,2]
[357574378,1744189387196,-401.14525075,0.00018599,2]
[357574379,1744189387221,-500.0,0.00018599,2]
[357574380,1744189387246,-500.0,0.00018599,2]
[357574381,1744189387271,-500.0,0.00018599,2]
[357574382,1744189387296,-500.0,0.00018599,2]
[357574383,1744189387321,-227.58634162,0.00018599,2]
[357574384,1744189387348,-500.0,0.00018599,2]
[357574385,1744189387373,-500.0,0.00018599,2]
[357574386,1744189387399,-500.0,0.00018599,2]
[357574387,1744189387424,-291.23498031,0.00018599,2]
[357574388,1744189392318,-500.0,0.00018573,2]
[357574389,1744189392342,-500.0,0.00018573,2]
[357574390,1744189392369,-208.76501969,0.00018599,2]
[357574391,1744189392393,-6629.89020876,0.000186,3]
[357574392,1744189392418,-42161.34477155,0.000186,2]
[357574393,1744189393394,-500.0,0.00018573,2]
[357574394,1744189393425,-49500.0,0.000186,2]
[357574395,1744189394912,859.94,0.00010959,2]
[357574396,1744189405603,700.95,0.00010959,2]
[357574397,1744189416078,584.12,0.00010959,2]
[357574398,1744189426566,486.77,0.00010959,2]
[357574399,1744189428674,195.78,0.00013699,2]
[357574400,1744189429082,195.78,0.00013699,2]
[357574401,1744189429560,195.78007475,0.00013699,2]
[357574402,1744189437240,405.64,0.00010959,2]
[357574403,1744189447919,338.04,0.00010959,2]
[357574404,1744189452944,-250.0,0.0001759,2]
[357574405,1744189452966,-50.0,0.00017601,2]
[357574406,1744189458842,281.7,0.00010959,2]
[357574407,1744189469346,234.75,0.00010959,2]
[357574408,1744189480143,195.62,0.00010959,2]
[357574409,1744189490695,163.02,0.00010959,2]
[357574410,1744189501366,815.11,0.00010959,2]
[357574411,1744189502074,-224.0,0.00017,2]
[357574412,1744189502097,-26.0,0.00017601,2]
[357574413,1744189543258,-160.0,0.00016,2]
[357574414,1744189546119,-669.8388,0.00021498,15]
[357574415,1744189546158,-173.625077,0.00021778,10]
[357574416,1744189546200,-156.402314,0.00022222,10]
[357574417,1744189546409,-3013.0,0.00025,25]
[357574418,1744189546443,-509.03950077,0.00027397,14]
[357574419,1744189546474,-419.56135214,0.00029,10]
[357574420,1744189546499,-419.56135214,0.00029,10]
[357574421,1744189546946,557.75,0.00028098,15]
[357574422,1744189555605,567.676077,0.00028098,15]
[357574423,1744189561111,614.004571,0.00028098,15]
[357574424,1744189565412,468.9,0.00028098,15]
[357574425,1744189569918,429.91,0.00028098,15]
[357574426,1744189574272,1180.986307,0.00028098,15]
[357574427,1744189578687,492.075958,0.00028545,15]
[357574428,1744189579305,-277.249116,0.00016,2]
[357574429,1744189582989,762.4,0.00028545,15]
[357574430,1744189587676,572.0,0.00028545,15]
[357574431,1744189630238,152.46,0.000289,31]
[357574432,1744189630276,152.46,0.000289,31]
[357574433,1744189630325,152.46,0.000289,31]
[357574434,1744189630385,152.46,0.000289,31]
[357574435,1744189630443,152.46,0.000289,31]
[357574436,1744189630521,152.46,0.000289,31]
[357574437,1744189630564,152.46,0.000289,31]
[357574444,1744189717106,2034.64071456,0.00029,10]
[357574445,1744189827138,834.75273087,0.00029,30]
[357574473,1744189832012,-1013.140884,0.00016,2]
[357574475,1744189832021,-405.951875,0.00017335,2]
[357574477,1744189832031,-222.750884,0.00017519,2]
[357574479,1744189832041,-250.0,0.0001759,2]
[357574480,1744189832050,-2972.43254872,0.00017601,2]
[357574481,1744189832062,-457.8874332,0.00017601,2]
[357574482,1744189832118,-1176.99482947,0.00017601,2]
[357574483,1744189832130,-846.5852697,0.00017601,2]
[357574484,1744189832141,-670.61074431,0.00017601,2]
[357574485,1744189832151,-198.87812867,0.00018499,2]
[357574547,1744189840074,-101.12187133,0.00018499,2]
[357574549,1744189840084,-3321.7817094,0.000185,2]
[357574582,1744189840284,-0.00936189,0.000185,2]
[357574585,1744189840297,-5522.25144817,0.000185,2]
[357574588,1744189840307,-360.39437392,0.00018502,2]
[357574591,1744189840316,-500.0,0.00018573,2]
[357574594,1744189840325,-500.0,0.00018573,2]
[357574597,1744189840335,-500.67954727,0.00018573,2]
[357574600,1744189840344,-160.51991771,0.00018573,2]
[357574603,1744189840353,-500.0,0.00018573,2]
[357574605,1744189840363,-500.0,0.00018573,2]
[357574607,1744189840372,-500.0,0.00018573,2]
[357574609,1744189840382,-500.0,0.00018573,2]
[357574611,1744189840392,-500.0,0.00018573,2]
[357574613,1744189840402,-398.27210099,0.00018573,2]
[357574615,1744189840414,-103.48352235,0.00018573,2]
[357574617,1744189840423,-500.0,0.00018573,2]
[357574619,1744189840433,-2651.86137368,0.00018573,2]
[357574622,1744189840444,-1613.22329112,0.00018573,2]
[357574703,1744189843257,-1307.5820432,0.00018573,2]
[357574705,1744189843269,-5409.88965544,0.00018573,2]
[357574707,1744189843280,-5012.3167377,0.00018573,2]
[357574709,1744189843292,-151.0,0.00018589,2]
[357574711,1744189843302,-1785.32506737,0.000186,2]
[357574713,1744189843320,-485.26542409,0.000186,2]
[357574715,1744189843336,-616.75923711,0.000186,2]
[357574741,1744189843582,-69.05888777,0.000186,2]
[357574742,1744189843594,-275382.24661211,0.000186,2]
[357574743,1744189843604,-213.3779527,0.000186,2]
[357574744,1744189843615,-153.0,0.000186,2]
[357574745,1744189843626,-156.6949557,0.000186,2]
[357574746,1744189843636,-153.0,0.000186,2]
[357574747,1744189843650,-564.3717366,0.000186,2]
[357574748,1744189843660,-360.39437389,0.00018602,2]
[357574749,1744189843670,-290.9261475,0.00018602,2]
[357574750,1744189843679,-156.6949557,0.000187,2]
[357574751,1744189843688,-213.3779527,0.000187,2]
[357574752,1744189843697,-564.3717366,0.000187,2]
[357574753,1744189843706,-213.3779527,0.000187,2]
[357574754,1744189843715,-156.6949557,0.000187,2]
[357574755,1744189843727,-564.3717366,0.000187,2]
[357574756,1744189843738,-360.39437389,0.00018701,2]
[357574757,1744189843748,-360.39437389,0.00018801,2]
[357574758,1744189843759,-367.29290408,0.00018899,2]
[357574759,1744189843770,-351.76245731,0.00018899,2]
[357574760,1744189843779,-279.38875432,0.000189,2]
[357574761,1744189843792,-156.6949557,0.000189,2]
[357574762,1744189843802,-213.3779527,0.000189,2]
[357574763,1744189843811,-153.0,0.000189,2]
[357574764,1744189843821,-153.0,0.000189,2]
[357574765,1744189843831,-564.3717366,0.000189,2]
[357574766,1744189843840,-156.6949557,0.000189,2]
[357574767,1744189843850,-213.3779527,0.000189,2]
[357574768,1744189843860,-153.0,0.000189,2]
[357574769,1744189843869,-564.3717366,0.000189,2]
[357574770,1744189843878,-360.39437389,0.000189,2]
[357574771,1744189843888,-250.0,0.00018947,2]
[357574772,1744189843897,-197.4,0.00018973,2]
[357574773,1744189843906,-197.4,0.00018973,2]
[357574774,1744189843916,-197.4,0.00018973,2]
[357574775,1744189843925,-197.4,0.00018973,2]
[357574776,1744189843934,-502.04149689,0.00018973,2]
[357574777,1744189843943,-500.0,0.00018973,2]
[357574778,1744189843952,-500.0,0.00018973,2]
[357574779,1744189843961,-500.0,0.00018973,2]
[357574780,1744189843970,-500.0,0.00018973,2]
[357574781,1744189843979,-325.41642069,0.00018973,2]
[357574783,1744189843989,-500.0,0.00018973,2]
[357574784,1744189843998,-500.0,0.00018973,2]
[357574786,1744189844007,-500.0,0.00018973,2]
[357574787,1744189844017,-500.0,0.00018973,2]
[357574789,1744189844026,-500.0,0.00018973,2]
[357574791,1744189844035,-501.77898303,0.00018973,2]
[357574793,1744189844047,-500.0,0.00018973,2]
[357574795,1744189844056,-500.0,0.00018973,2]
[357574797,1744189844065,-502.28124496,0.00018973,2]
[357574799,1744189844075,-500.0,0.00018973,2]
[357574801,1744189844084,-500.0,0.00018973,2]
[357574803,1744189844093,-500.0,0.00018973,2]
[357574805,1744189844103,-540.16482465,0.00018973,2]
[357574807,1744189844112,-501.14459908,0.00018973,2]
[357574809,1744189844121,-502.54752571,0.00018973,2]
[357574811,1744189844131,-500.22565596,0.00018973,2]
[357574814,1744189844140,-472.8553471,0.00018973,2]
[357574816,1744189844150,-500.0,0.00018973,2]
[357574818,1744189844159,-502.16240439,0.00018973,2]
[357574820,1744189844168,-500.0,0.00018973,2]
[357574822,1744189844177,-500.0,0.00018973,2]
[357574824,1744189844186,-283.69765538,0.00018973,2]
[357574826,1744189844195,-500.86857116,0.00018973,2]
[357574828,1744189844204,-500.85069976,0.00018973,2]
[357574830,1744189844213,-500.0,0.00018973,2]
[357574832,1744189844223,-500.0,0.00018973,2]
[357574834,1744189844232,-502.24481927,0.00018973,2]
[357574836,1744189844242,-500.0,0.00018973,2]
[357574838,1744189844251,-500.0,0.00018973,2]
[357574840,1744189844261,-567.77123612,0.00018973,2]
[357574842,1744189844270,-500.0,0.00018973,2]
[357574844,1744189844279,-501.31536,0.00018973,2]
[357574846,1744189844288,-864.82835391,0.00018986,2]
[357574848,1744189844299,-3314.94510438,0.00018999,3]
[357574850,1744189844308,-81893.52986189,0.00018999,2]
[357574852,1744189844318,-266579.99128543,0.00019,2]
[357574854,1744189844327,-151.0,0.000191,2]
[357574856,1744189844336,-503.12843854,0.00019173,2]
[357574858,1744189844346,-500.0,0.00019178,2]
[357574860,1744189844356,-500.0,0.00019178,2]
[357574862,1744189844365,-500.0,0.00019178,2]
[357574874,1744189844467,-500.0,0.00019178,2]
[357574877,1744189844479,-500.0,0.00019178,2]
[357574879,1744189844488,-503.21813137,0.00019178,2]
[357574881,1744189844497,-509.92527038,0.00019178,2]
[357574883,1744189844509,-510.37261487,0.00019178,2]
[357574885,1744189844519,-500.0,0.00019178,2]
[357574887,1744189844528,-500.0,0.00019178,2]
[357574889,1744189844538,-500.0,0.00019178,2]
[357574891,1744189844549,-500.0,0.00019178,2]
[357574893,1744189844558,-397.51046688,0.00019178,2]
[357574895,1744189844568,-233.43395003,0.00019178,2]
[357574897,1744189844577,-500.0,0.00019178,2]
[357574899,1744189844586,-536.7720836,0.00019178,2]
[357574901,1744189844596,-500.0,0.00019178,2]
[357574904,1744189844605,-500.0,0.00019178,2]
[357574906,1744189844615,-500.0,0.00019178,2]
[357574908,1744189844624,-500.0,0.00019178,2]
[357574910,1744189844633,-506.72252428,0.00019178,2]
[357574912,1744189844642,-500.0,0.00019178,2]
[357574914,1744189844650,-528.35209981,0.00019178,2]
[357574916,1744189844660,-500.43864029,0.00019178,2]
[357574917,1744189844669,-500.0,0.00019178,2]
[357574920,1744189844679,-500.0,0.00019178,2]
[357574922,1744189844688,-500.0,0.00019178,2]
[357574924,1744189844697,-500.0,0.00019178,2]
[357574926,1744189844707,-500.0,0.00019178,2]
[357574928,1744189844720,-500.0,0.00019178,2]
[357574930,1744189844730,-507.29777035,0.00019178,2]
[357574932,1744189844739,-284.297469,0.00019178,2]
[357574934,1744189844748,-500.0,0.00019178,2]
[357574936,1744189844759,-572.74430722,0.00019178,2]
[357574938,1744189844768,-349.77560306,0.00019178,2]
[357574940,1744189844777,-533.16293146,0.00019178,2]
[357574942,1744189844788,-620.10422027,0.00019178,2]
[357574944,1744189844797,-500.0,0.00019178,2]
[357574946,1744189844807,-500.0,0.00019178,2]
[357574948,1744189844816,-500.0,0.00019178,2]
[357574950,1744189844825,-500.0,0.00019178,2]
[357574952,1744189844834,-519.51353247,0.00019178,2]
[357574954,1744189844843,-557.37846738,0.00019178,2]
[357574956,1744189844853,-500.0,0.00019178,2]
[357574958,1744189844863,-500.0,0.00019178,2]
[357574960,1744189844872,-500.0,0.00019178,2]
[357574962,1744189844881,-545.34792713,0.00019178,2]
[357574964,1744189844890,-500.0,0.00019178,2]
[357574966,1744189844900,-500.0,0.00019178,2]
[357574968,1744189844909,-500.0,0.00019178,2]
[357574970,1744189844919,-500.0,0.00019178,2]
[357574972,1744189844929,-548.84698699,0.00019178,2]
[357574974,1744189844938,-520.62333247,0.00019178,2]
[357574976,1744189844947,-500.0,0.00019178,2]
[357574978,1744189844956,-500.0,0.00019178,2]
[357574980,1744189844966,-500.0,0.00019178,2]
[357574982,1744189844975,-500.0,0.00019178,2]
[357574984,1744189844984,-528.14546841,0.00019178,2]
[357574986,1744189844993,-500.0,0.00019178,2]
[357574988,1744189845003,-500.0,0.00019178,2]
[357574990,1744189845012,-423.59102568,0.00019178,2]
[357574992,1744189845021,-500.0,0.00019178,2]
[357574994,1744189845031,-500.0,0.00019178,2]
[357574996,1744189845040,-500.0,0.00019178,2]
[357574998,1744189845050,-235.46161494,0.00019178,2]
[357575001,1744189845059,-500.0,0.00019178,2]
[357575002,1744189845069,-2084.08,0.00019178,2]
[357575004,1744189845078,-151.0,0.00019178,2]
[357575006,1744189845087,-151.0,0.00019178,2]
[357575008,1744189845097,-151.0,0.00019178,2]
[357575010,1744189845107,-500.0,0.00019178,2]
[357575012,1744189845117,-500.0,0.00019178,2]
[357575014,1744189845126,-500.0,0.00019178,2]
[357575016,1744189845135,-500.0,0.00019178,2]
[357575019,1744189845145,-500.0,0.00019178,2]
[357575021,1744189845154,-500.0,0.00019178,2]
[357575023,1744189845163,-500.0,0.00019178,2]
[357575025,1744189845173,-500.0,0.00019178,2]
[357575027,1744189845182,-500.0,0.00019178,2]
[357575029,1744189845191,-500.0,0.00019178,2]
[357575030,1744189845200,-158.539165,0.00019178,2]
[357575032,1744189845210,-310.167438,0.00019178,2]
[357575033,1744189845219,-310.167438,0.00019178,2]
[357575034,1744189845232,-310.167438,0.00019178,2]
[357575035,1744189845250,-500.0,0.00019178,2]
[357575036,1744189845265,-503.46385875,0.00019178,2]
[357575037,1744189845280,-500.0,0.00019178,2]
[357575039,1744189845295,-310.167438,0.00019178,2]
[357575041,1744189845311,-310.167438,0.00019178,2]
[357575042,1744189845326,-310.167438,0.00019178,2]
[357575043,1744189845343,-500.0,0.00019178,2]
[357575044,1744189845357,-500.0,0.00019178,2]
[357575046,1744189845371,-500.0,0.00019178,2]
[357575048,1744189845386,-500.0,0.00019178,2]
[357575049,1744189845401,-500.0,0.00019178,2]
[357575051,1744189845414,-500.0,0.00019178,2]
[357575052,1744189845427,-500.0,0.00019178,2]
[357575053,1744189845440,-500.0,0.00019178,2]
[357575054,1744189845455,-500.0,0.00019178,2]
[357575055,1744189845469,-500.0,0.00019178,2]
[357575056,1744189845492,-210.38406888,0.00019178,2]
[357575057,1744189845508,-500.0,0.00019178,2]
[357575058,1744189845519,-500.0,0.00019178,2]
[357575059,1744189845532,-500.0,0.00019178,2]
[357575060,1744189845548,-500.0,0.00019178,2]
[357575061,1744189845564,-500.0,0.00019178,2]
[357575062,1744189845576,-572.71,0.00019178,2]
[357575063,1744189845590,-507.46109349,0.00019178,2]
[357575064,1744189845604,-323.37604021,0.00019178,2]
[357575065,1744189845616,-516.57967661,0.00019178,2]
[357575066,1744189845629,-500.0,0.00019178,2]
[357575067,1744189845642,-500.0,0.00019178,2]
[357575068,1744189845657,-500.0,0.00019178,2]
[357575069,1744189845671,-516.21808631,0.00019178,2]
[357575070,1744189845687,-500.0,0.00019178,2]
[357575071,1744189845701,-228.5448698,0.00019178,2]
[357575075,1744189845717,-500.0,0.00019178,2]
[357575077,1744189845735,-1136.35,0.00019178,2]
[357575078,1744189845748,-545.46385473,0.00019178,2]
[357575079,1744189845762,-500.0,0.00019178,2]
[357575080,1744189845776,-500.0,0.00019178,2]
[357575081,1744189845790,-500.0,0.00019178,2]
[357575082,1744189845807,-500.0,0.00019178,2]
[357575083,1744189845821,-538.48648647,0.00019178,2]
[357575084,1744189845834,-500.0,0.00019178,2]
[357575085,1744189845849,-500.0,0.00019178,2]
[357575086,1744189845862,-500.0,0.00019178,2]
[357575087,1744189845875,-500.0,0.00019178,2]
[357575088,1744189845889,-311.53845038,0.00019178,2]
[357575089,1744189845902,-500.0,0.00019178,2]
[357575090,1744189845932,-940.23,0.00019178,2]
[357575091,1744189845954,-500.0,0.00019178,2]
[357575092,1744189845972,-500.0,0.00019178,2]
[357575093,1744189845989,-836.02,0.00019178,2]
[357575094,1744189846004,-151.0,0.00019178,2]
[357575095,1744189846019,-158.954789,0.00019178,2]
[357575096,1744189846035,-545.06,0.00019178,2]
[357575097,1744189846053,-500.0,0.00019178,2]
[357575098,1744189846068,-500.0,0.00019178,2]
[357575099,1744189846082,-538.34080767,0.00019178,2]
[357575100,1744189846096,-500.0,0.00019178,2]
[357575101,1744189846111,-500.0,0.00019178,2]
[357575102,1744189846125,-510.38648435,0.00019178,2]
[357575103,1744189846138,-500.0,0.00019178,2]
[357575104,1744189846152,-500.0,0.00019178,2]
[357575105,1744189846165,-500.0,0.00019178,2]
[357575106,1744189846178,-500.0,0.00019178,2]
[357575107,1744189846191,-649.44,0.00019178,2]
[357575108,1744189846204,-500.0,0.00019178,2]
[357575109,1744189846218,-500.0,0.00019178,2]
[357575110,1744189846231,-810.92,0.00019178,2]
[357575111,1744189846246,-500.0,0.00019178,2]
[357575112,1744189846257,-500.0,0.00019178,2]
[357575113,1744189846266,-500.0,0.00019178,2]
[357575114,1744189846276,-901.05,0.00019178,2]
[357575115,1744189846285,-500.0,0.00019178,2]
[357575116,1744189846296,-367.41411062,0.00019178,2]
[357575117,1744189846305,-500.0,0.00019178,2]
[357575118,1744189846316,-151.0,0.00019178,2]
[357575119,1744189846509,-151.0,0.00019178,2]
[357575120,1744189846524,-151.0,0.00019178,2]
[357575121,1744189846534,-151.0,0.00019178,2]
[357575122,1744189846545,-151.0,0.00019178,2]
[357575123,1744189846555,-151.0,0.00019178,2]
[357575124,1744189846564,-151.0,0.00019178,2]
[357575125,1744189846573,-151.0,0.00019178,2]
[357575126,1744189846583,-500.0,0.00019178,2]
[357575127,1744189846592,-1075.82,0.00019178,2]
[357575128,1744189846602,-500.0,0.00019178,2]
[357575129,1744189846611,-953.3,0.00019178,2]
[357575130,1744189846620,-500.0,0.00019178,2]
[357575131,1744189846631,-345.81032537,0.00019178,2]
[357575132,1744189846640,-500.0,0.00019178,2]
[357575133,1744189846649,-760.35,0.00019178,2]
[357575134,1744189846658,-500.0,0.00019178,2]
[357575135,1744189846668,-500.0,0.00019178,2]
[357575136,1744189846677,-500.0,0.00019178,2]
[357575137,1744189846688,-552.32473733,0.00019178,2]
[357575138,1744189846698,-500.0,0.00019178,2]
[357575139,1744189846707,-614.36281832,0.00019178,2]
[357575140,1744189846721,-500.0,0.00019178,2]
[357575141,1744189846730,-226.7139226,0.00019178,2]
[357575142,1744189846740,-500.0,0.00019178,2]
[357575143,1744189846749,-500.0,0.00019178,2]
[357575144,1744189846759,-500.0,0.00019178,2]
[357575145,1744189846769,-500.0,0.00019178,2]
[357575146,1744189846778,-500.0,0.00019178,2]
[357575147,1744189846788,-500.0,0.00019178,2]